fUSD/lending_fUSD_20250721
["ID","MTS","AMOUNT","RATE_DAILY","PERIOD"]
[373596510,1753056650521,-922.96441,0.00019223,2]
[373596511,1753056650531,-2267.04635347,0.00019224,2]
[373596514,1753056650541,-7681.20591386,0.00019234,2]
[373596516,1753056650554,-150.0,0.0001926,4]
[373596518,1753056650563,-150.0,0.0001926,4]
[373596519,1753056650572,-150.0,0.0001926,4]
[373596521,1753056650582,-150.0,0.0001926,4]
[373596523,1753056650591,-150.0,0.0001926,4]
[373596525,1753056650600,-150.0,0.0001926,4]
[373596527,1753056650609,-150.0,0.0001926,4]
[373596529,1753056650619,-150.0,0.0001927,2]
[373596531,1753056650629,-500.0,0.00019273,2]
[373596533,1753056650639,-500.0,0.00019273,2]
[373596535,1753056650649,-200.56646563,0.00019273,2]
[373596537,1753056650658,-500.0,0.00019273,2]
[373596539,1753056650667,-502.14929429,0.00019273,2]
[373596541,1753056650677,-500.0,0.00019273,2]
[373596543,1753056650687,-500.0,0.00019273,2]
[373596545,1753056650699,-500.0,0.00019273,2]
[373596548,1753056650708,-500.59874626,0.00019273,2]
[373596550,1753056650718,-500.0,0.00019273,2]
[373596551,1753056650727,-500.0,0.00019273,2]
[373596554,1753056650737,-500.0,0.00019273,2]
[373596556,1753056650747,-500.0,0.00019273,2]
[373596557,1753056650756,-500.0,0.00019273,2]
[373596560,1753056650766,-500.0,0.00019273,2]
[373596561,1753056650775,-500.0,0.00019273,2]
[373596563,1753056650785,-500.0,0.00019273,2]
[373596565,1753056650794,-776.55,0.00019285,2]
[373596567,1753056650803,-776.55,0.00019286,2]
[373596569,1753056650813,-776.55,0.00019286,2]
[373596571,1753056650822,-776.55,0.00019286,2]
[373596573,1753056650832,-300.0,0.00019286,2]
[373596575,1753056650841,-300.0,0.00019286,2]
[373596577,1753056650851,-151.0,0.00019286,2]
[373596579,1753056650860,-666.0,0.00019287,2]
[373596581,1753056650870,-480.0,0.00019287,2]
[373596583,1753056650879,-480.0,0.00019287,2]
[373596585,1753056650889,-151.0,0.00019287,2]
[373596587,1753056650899,-151.0,0.00019287,2]
[373596589,1753056650908,-151.0,0.00019287,2]
[373596591,1753056650917,-151.0,0.00019287,2]
[373596593,1753056650926,-480.0,0.00019287,2]
[373596594,1753056650935,-480.0,0.00019287,2]
[373596595,1753056650944,-480.0,0.00019287,2]
[373596596,1753056650954,-480.0,0.00019287,2]
[373596597,1753056650963,-548.69733401,0.00019287,2]
[373596598,1753056650972,-302.15388807,0.00019287,2]
[373596599,1753056650982,-480.0,0.00019287,2]
[373596600,1753056650992,-480.0,0.00019287,2]
[373596601,1753056651001,-480.0,0.00019287,2]
[373596602,1753056651011,-480.0,0.00019287,2]
[373596603,1753056651020,-480.0,0.00019287,2]
[373596604,1753056651030,-480.0,0.00019287,2]
[373596606,1753056651039,-480.0,0.00019287,2]
[373596608,1753056651051,-480.0,0.00019287,2]
[373596610,1753056651059,-480.0,0.00019287,2]
[373596612,1753056651069,-465.28886432,0.00019287,2]
[373596614,1753056651078,-480.0,0.00019287,2]
[373596616,1753056651088,-480.0,0.00019287,2]
[373596618,1753056651097,-480.0,0.00019287,2]
[373596620,1753056651106,-522.57,0.00019287,2]
[373596622,1753056651115,-585.71,0.00019287,2]
[373596624,1753056651124,-519.18,0.00019287,2]
[373596626,1753056651133,-460.0,0.00019287,2]
[373596628,1753056651143,-480.0,0.00019287,2]
[373596630,1753056651152,-480.0,0.00019287,2]
[373596632,1753056651161,-480.0,0.00019287,2]
[373596634,1753056651170,-480.0,0.00019287,2]
[373596636,1753056651179,-480.0,0.00019287,2]
[373596638,1753056651188,-480.0,0.00019287,2]
[373596640,1753056651197,-480.0,0.00019287,2]
[373596642,1753056651207,-480.0,0.00019287,2]
[373596643,1753056651217,-619.462675,0.00019287,2]
[373596645,1753056651227,-240.28499056,0.00019287,2]
[373596648,1753056651236,-505.18,0.00019287,2]
[373596649,1753056651246,-480.0,0.00019287,2]
[373596652,1753056651256,-480.0,0.00019287,2]
[373596653,1753056651266,-480.0,0.00019287,2]
[373596655,1753056651275,-480.0,0.00019287,2]
[373596657,1753056651284,-480.0,0.00019287,2]
[373596659,1753056651294,-480.0,0.00019287,2]
[373596661,1753056651306,-480.0,0.00019287,2]
[373596663,1753056651315,-480.0,0.00019287,2]
[373596665,1753056651324,-480.0,0.00019287,2]
[373596667,1753056651334,-480.0,0.00019287,2]
[373596669,1753056651343,-480.0,0.00019287,2]
[373596671,1753056651352,-1193.3,0.00019287,2]
[373596673,1753056651361,-606.61713283,0.00019287,2]
[373596675,1753056651370,-480.0,0.00019287,2]
[373596677,1753056651381,-480.0,0.00019287,2]
[373596679,1753056651391,-876.39,0.00019287,2]
[373596681,1753056651400,-460.0,0.00019287,2]
[373596683,1753056651411,-480.0,0.00019287,2]
[373596685,1753056651421,-669.24,0.00019287,2]
[373596687,1753056651430,-480.0,0.00019287,2]
[373596690,1753056651446,-480.0,0.00019287,2]
[373596691,1753056651458,-948.75,0.00019287,2]
[373596693,1753056651470,-480.0,0.00019287,2]
[373596695,1753056651480,-576.18,0.00019287,2]
[373596697,1753056651490,-480.0,0.00019287,2]
[373596699,1753056651504,-151.0,0.00019287,2]
[373596701,1753056651514,-480.0,0.00019287,2]
[373596704,1753056651523,-279.60603116,0.00019287,2]
[373596706,1753056651533,-782.78,0.00019287,2]
[373596708,1753056651545,-480.0,0.00019287,2]
[373596709,1753056651556,-762.79,0.00019287,2]
[373596712,1753056651565,-480.0,0.00019287,2]
[373596713,1753056651576,-480.0,0.00019287,2]
[373596715,1753056651586,-2150.38,0.00019287,2]
[373596717,1753056651598,-243.44323512,0.00019287,2]
[373596719,1753056651609,-480.0,0.00019287,2]
[373596721,1753056651618,-658.74,0.00019287,2]
[373596723,1753056651627,-151.0,0.00019287,2]
[373596725,1753056651637,-1266.37,0.00019287,2]
[373596728,1753056651647,-480.0,0.00019287,2]
[373596730,1753056651656,-480.0,0.00019287,2]
[373596731,1753056651666,-151.0,0.00019287,2]
[373596733,1753056651675,-480.0,0.00019287,2]
[373596735,1753056651685,-151.0,0.00019287,2]
[373596737,1753056651694,-280.857553,0.00019287,2]
[373596739,1753056651703,-480.0,0.00019287,2]
[373596741,1753056651712,-480.0,0.00019287,2]
[373596743,1753056651722,-480.0,0.00019287,2]
[373596746,1753056651732,-480.0,0.00019287,2]
[373596747,1753056651741,-151.0,0.00019287,2]
[373596749,1753056651750,-480.0,0.00019287,2]
[373596752,1753056651759,-480.0,0.00019287,2]
[373596753,1753056651769,-940.92,0.00019287,2]
[373596755,1753056651778,-480.0,0.00019287,2]
[373596757,1753056651787,-480.0,0.00019287,2]
[373596760,1753056651802,-168.02303908,0.00019287,2]
[373596762,1753056651811,-151.0,0.00019287,2]
[373596763,1753056651821,-1132.4,0.00019287,2]
[373596765,1753056651830,-480.0,0.00019287,2]
[373596767,1753056651840,-300.0,0.00019287,2]
[373596769,1753056651850,-436.52081962,0.00019287,2]
[373596771,1753056651859,-480.0,0.00019287,2]
[373596773,1753056651869,-869.13,0.00019287,2]
[373596775,1753056651878,-733.99,0.00019287,2]
[373596777,1753056651888,-480.0,0.00019287,2]
[373596779,1753056651897,-460.0,0.00019287,2]
[373596781,1753056651907,-480.0,0.00019287,2]
[373596783,1753056651916,-480.0,0.00019287,2]
[373596785,1753056651926,-521.17,0.00019287,2]
[373596787,1753056651936,-480.0,0.00019287,2]
[373596789,1753056651946,-273.84133459,0.00019287,2]
[373596791,1753056651956,-480.0,0.00019287,2]
[373596793,1753056651967,-480.0,0.00019287,2]
[373596795,1753056651976,-480.0,0.00019287,2]
[373596797,1753056651986,-532.55,0.00019287,2]
[373596799,1753056651995,-535.08,0.00019287,2]
[373596801,1753056652004,-480.0,0.00019287,2]
[373596803,1753056652014,-420.22073501,0.00019287,2]
[373596805,1753056652023,-741.18,0.00019287,2]
[373596807,1753056652032,-623.64,0.00019287,2]
[373596809,1753056652041,-480.0,0.00019287,2]
[373596811,1753056652054,-211.82318383,0.00019287,2]
[373598126,1753056742359,155.58,0.00013699,2]
[373598129,1753057225560,152.99,0.000229,31]
[373598130,1753057225614,152.99,0.000229,31]
[373598131,1753057226034,152.99,0.000229,31]
[373598132,1753057226096,152.99,0.000229,31]
[373598133,1753057226157,152.99,0.000229,31]
[373598134,1753057226223,152.99,0.000229,31]
[373598135,1753057231424,152.99,0.000229,31]
[373598145,1753057763168,-300.0,0.00016254,2]
[373598146,1753057763189,-2984.96,0.00016255,2]
[373598147,1753057770193,-1850.24,0.00016255,2]
[373598149,1753057803570,830.0,0.000162,2]
[373598150,1753057803607,918.5784152,0.000162,2]
[373598151,1753057803633,15000.0,0.000162,2]
[373598152,1753057803661,15000.0,0.000162,2]
[373598153,1753057803688,15000.0,0.000162,2]
[373598154,1753057803715,3442.46697305,0.000162,2]
[373598155,1753057830586,153.0,0.000229,31]
[373598156,1753057830655,153.0,0.000229,31]
[373598157,1753057830907,153.0,0.000229,31]
[373598158,1753057830979,153.0,0.000229,31]
[373598159,1753057831040,153.0,0.000229,31]
[373598160,1753057831116,153.0,0.000229,31]
[373598161,1753057831189,153.0,0.000229,31]
[373598171,1753057831951,-87.94111281,0.00016255,2]
[373598172,1753057831965,-314.31890386,0.00016255,2]
[373598173,1753057831979,-2455.00575625,0.00016255,2]
[373598174,1753057831991,-511.0,0.00016396,2]
[373598175,1753057832003,-300.0,0.00016999,2]
[373598176,1753057832012,-1200.0,0.00016999,2]
[373598177,1753057832022,-202.4874211,0.00016999,2]
[373598178,1753057832032,-38346.41486863,0.00017,2]
[373598179,1753057832043,-3410.0,0.00017,2]
[373598180,1753057832055,-11185.38362001,0.00017,2]
[373598181,1753057832116,-14361.08660191,0.00017,2]
[373598560,1753057837878,-129664.95694934,0.00017,2]
[373598561,1753057837958,-9551.50924457,0.00017,2]
[373598562,1753057837983,-3246.65795127,0.00017,2]
[373598563,1753057838010,-3664.97435411,0.00017,2]
[373598564,1753057838035,-3239.10604753,0.00017,2]
[373598565,1753057838047,-250.77297166,0.00017,2]
[373598566,1753057838061,-1926.90039697,0.00017,2]
[373598569,1753057840177,-407.37996002,0.00017,2]
[373598570,1753057841237,-8829.83217663,0.00017,2]
[373598574,1753057842835,-4352.22096363,0.00017,2]
[373598575,1753057842942,-619.46121046,0.00017,2]
[373598576,1753057843050,-5480.32307943,0.00017,2]
[373598577,1753057843065,-1926.26650269,0.00017,2]
[373598578,1753057843105,-1059.20199482,0.00017,2]
[373598579,1753057843118,-10494.138959,0.00017,2]
[373598580,1753057843130,-2774.35831604,0.00017,2]
[373598581,1753057843142,-59404.3906224,0.00017,2]
[373598582,1753057843159,-3328.33354016,0.00017,2]
[373598616,1753057845994,-1215.33704299,0.00017,2]
[373598617,1753057846209,-1505.491982,0.00017,2]
[373598618,1753057846425,-743.949503,0.00017,2]
[373598627,1753058030717,155.58,0.00013699,2]
[373598629,1753058149095,1000.0,0.00023,30]
[373598633,1753058253452,3183.981567,0.00016214,2]
[373598634,1753058279454,510.0,0.00015396,2]
[373598637,1753058435935,153.02,0.000229,31]
[373598638,1753058435999,153.02,0.000229,31]
[373598639,1753058436197,153.02,0.000229,31]
[373598640,1753058436272,153.02,0.000229,31]
[373598641,1753058436332,153.02,0.000229,31]
[373598642,1753058436395,153.02,0.000229,31]
[373598643,1753058436467,153.02,0.000229,31]
[373598644,1753058530526,-161.41,0.0001674,2]
[373598645,1753058530548,-166.48,0.00016756,2]
[373598646,1753058530574,-161.41,0.00016768,2]
[373598647,1753058530597,-161.41,0.00016796,2]
[373598648,1753058530618,-211.93971334,0.000168,2]
[373598649,1753058530646,-161.41,0.00016823,2]
[373598650,1753058530886,-161.41,0.00016851,2]
[373598651,1753058530910,-161.41,0.00016879,2]
[373598652,1753058531004,-2485.53546068,0.000169,2]
[373598653,1753058531027,-512.58644358,0.000169,2]
[373598654,1753058531050,-161.41,0.00016907,2]
[373598655,1753058531072,-300.44,0.00016914,2]
[373598656,1753058531094,-1074.8,0.00016952,2]
[373598657,1753058531117,-610.13776755,0.0001698,2]
[373598658,1753058531142,-1200.0,0.00016988,2]
[373598659,1753058531164,-155.676,0.00016989,2]
[373598660,1753058531187,-150.0,0.00016989,2]
[373598661,1753058531210,-151.0,0.0001699,2]
[373598662,1753058531235,-151.0,0.0001699,2]
[373598663,1753058531258,-151.0,0.0001699,2]
[373598664,1753058531283,-151.0,0.0001699,2]
[373598665,1753058531307,-151.0,0.0001699,2]
[373598666,1753058531331,-151.0,0.0001699,2]
[373598667,1753058531354,-151.0,0.0001699,2]
[373598668,1753058531380,-600.0,0.0001699,2]
[373598669,1753058531403,-151.0,0.0001699,2]
[373598670,1753058531425,-428.1277157,0.0001699,2]
[373598671,1753058531448,-151.0,0.0001699,2]
[373598672,1753058531471,-151.0,0.0001699,2]
[373598673,1753058531497,-151.0,0.0001699,2]
[373598674,1753058531523,-151.0,0.0001699,2]
[373598675,1753058531546,-151.0,0.0001699,2]
[373598676,1753058531568,-500.0,0.0001699,2]
[373598677,1753058531590,-500.0,0.0001699,2]
[373598678,1753058531613,-500.0,0.0001699,2]
[373598679,1753058531639,-500.0,0.0001699,2]
[373598680,1753058531661,-500.0,0.0001699,2]
[373598681,1753058531684,-3308.64656661,0.0001699,2]
[373598682,1753058531708,-251548.92168681,0.00017,2]
[373598683,1753058531731,-500.0,0.00017,2]
[373598684,1753058531754,-505.48267575,0.00017,2]
[373598685,1753058531777,-2485.5354606,0.00017215,2]
[373598686,1753058531803,-3094.69271,0.0001727,2]
[373598687,1753058531824,-183.2246196,0.00017333,2]
[373598688,1753058531847,-500.0,0.00017342,2]
[373598689,1753058531869,-250.0,0.00017346,2]
[373598690,1753058531893,-1000.0,0.000174,2]
[373598691,1753058531920,-23900.0,0.00017415,2]
[373598692,1753058531948,-150.0,0.00017433,2]
[373598693,1753058531971,-332.0,0.000175,2]
[373598694,1753058531997,-3094.69271,0.0001752,2]
[373598695,1753058532022,-2485.5354606,0.0001753,2]
[373598696,1753058532044,-666.0,0.00017536,2]
[373598697,1753058532067,-332.25,0.00017542,2]
[373598698,1753058532089,-151.0,0.0001766,2]
[373598699,1753058532111,-510.0,0.00017743,5]
[373598700,1753058532136,-331.46,0.0001775,2]
[373598701,1753058532158,-3094.69271,0.0001777,2]
[373598702,1753058532183,-547.18,0.00017772,2]
[373598703,1753058532209,-2485.5354606,0.00017845,2]
[373598704,1753058532231,-150.0,0.00017917,2]
[373598705,1753058532254,-2117.4751802,0.00017924,2]
[373598706,1753058532276,-1000.0,0.00017929,2]
[373598707,1753058532298,-338.21,0.00017967,2]
[373598708,1753058532320,-24263.45871055,0.00018,3]
[373598709,1753058532342,-210.86573235,0.00018,3]
[373598710,1753058532363,-476.8747822,0.00018,3]
[373598711,1753058532386,-16759.8798,0.00018,2]
[373598712,1753058532408,-500.0,0.00018,2]
[373598713,1753058532430,-500.0,0.00018,2]
[373598714,1753058532452,-504.33117911,0.00018,2]
[373598715,1753058532475,-3094.69271,0.0001802,2]
[373598716,1753058532498,-2117.47518018,0.00018125,2]
[373598717,1753058532522,-7142.856,0.00018138,2]
[373598718,1753058532545,-231.28369723,0.00018138,2]
[373598719,1753058532569,-2485.5354606,0.0001816,2]
[373598720,1753058532594,-363161.61840616,0.0001827,2]
[373598722,1753058751144,-167.52172886,0.00016889,2]
[373598723,1753058751164,-2006.24736982,0.00016949,2]
[373598724,1753058751185,-1200.0,0.00016989,2]
[373598725,1753058751205,-87.48960071,0.0001699,2]
[373598726,1753058833092,-300.0,0.00016989,2]
[373598727,1753058833114,-500.0,0.0001699,2]
[373598728,1753058833136,-500.0,0.0001699,2]
[373598729,1753058833157,-500.0,0.0001699,2]
[373598730,1753058833178,-296.31915461,0.0001699,2]
[373598731,1753058849149,-203.68084539,0.0001699,2]
[373598732,1753058849174,-500.0,0.0001699,2]
[373598733,1753058849195,-500.0,0.0001699,2]
[373598734,1753058849218,-500.0,0.0001699,2]
[373598735,1753058849240,-500.0,0.0001699,2]
[373598736,1753058849261,-500.0,0.0001699,2]
[373598737,1753058849283,-500.0,0.0001699,2]
[373598738,1753058849304,-500.0,0.0001699,2]
[373598739,1753058849325,-500.0,0.0001699,2]
[373598740,1753058849345,-500.0,0.0001699,2]
[373598741,1753058849364,-500.0,0.0001699,2]
[373598742,1753058849384,-500.0,0.0001699,2]
[373598743,1753058849404,-500.0,0.0001699,2]
[373598744,1753058849425,-73.64303499,0.0001699,2]
[373598757,1753059032087,-195.31580479,0.0001689,2]
[373598758,1753059032097,-300.0,0.00016939,2]
[373598759,1753059032106,-600.0,0.00016988,2]
[373598760,1753059032116,-1200.0,0.00016989,2]
[373598761,1753059032125,-300.0,0.00016989,2]
[373598762,1753059032135,-300.0,0.00016989,2]
[373598763,1753059032145,-426.35696501,0.0001699,2]
[373598764,1753059032154,-500.0,0.0001699,2]
[373598765,1753059032164,-500.0,0.0001699,2]
[373598766,1753059032174,-500.0,0.0001699,2]
[373598767,1753059032183,-500.0,0.0001699,2]
[373598768,1753059032193,-500.0,0.0001699,2]
[373598769,1753059032202,-500.0,0.0001699,2]
[373598770,1753059032211,-346.48945171,0.0001699,2]
[373598771,1753059032220,-83.15361872,0.0001699,2]
[373598772,1753059032232,-167.07081587,0.0001699,2]
[373598773,1753059032241,-300.0,0.00017211,2]
[373598774,1753059032251,-150.0,0.00017433,2]
[373598775,1753059032260,-150.0,0.00017433,2]
[373598776,1753059032270,-150.0,0.00017433,2]
[373598777,1753059032279,-150.0,0.00017433,2]
[373598778,1753059032289,-150.0,0.00017433,2]
[373598779,1753059032301,-239.4543838,0.00017433,2]
[373598780,1753059032312,-280.51092684,0.00017433,2]
[373598781,1753059032321,-190.0,0.00017818,7]
[373598782,1753059032331,-874.88521582,0.00017838,2]
[373598783,1753059032340,-200.0,0.00017865,2]
[373598784,1753059032350,-150.27,0.00017878,2]
[373598785,1753059032360,-246.23,0.00017902,2]
[373598786,1753059032370,-168.28,0.00018,2]
[373598787,1753059032380,-265.17,0.00018034,2]
[373598788,1753059032390,-150.0,0.00018059,2]
[373598789,1753059032399,-389.78608,0.0001809,2]
[373598790,1753059032409,-511.0,0.00018091,2]
[373598791,1753059032419,-346.92554585,0.00018138,2]
[373598792,1753059032428,-7142.856,0.00018138,2]
[373598793,1753059032438,-231.28369723,0.00018138,2]
[373598794,1753059032447,-458.36,0.00018146,2]
[373598795,1753059032457,-150.0,0.00018146,2]
[373598796,1753059032466,-150.0,0.00018146,2]
[373598797,1753059032476,-150.0,0.00018146,2]
[373598798,1753059032486,-150.0,0.000182,2]
[373598799,1753059032497,-350.0,0.00018252,2]
[373598801,1753059032507,-300.95,0.000183,2]
[373598802,1753059032516,-150.0,0.000183,2]
[373598803,1753059032526,-242.14,0.00018329,2]
[373598804,1753059032535,-150.0,0.00018401,2]
[373598805,1753059032547,-150.0,0.00018401,2]
[373598806,1753059032557,-332.25,0.00018419,2]
[373598807,1753059032567,-965.0,0.00018531,2]
[373598808,1753059032577,-150.0,0.00018531,2]
[373598809,1753059032586,-150.0,0.00018554,2]
[373598810,1753059032596,-420.0,0.00018556,2]
[373598811,1753059032605,-150.0,0.00018574,2]
[373598812,1753059032615,-150.9,0.00018578,2]
[373598813,1753059032624,-1000.0,0.00018579,2]
[373598814,1753059032634,-300.0,0.00018579,2]
[373598815,1753059032643,-301.35,0.000186,2]
[373598816,1753059032653,-1000.0,0.0001863,2]
[373598817,1753059032662,-829.34,0.0001863,2]
[373598818,1753059032672,-1680.0,0.00018648,2]
[373598819,1753059032681,-150.0,0.00018652,2]
[373598820,1753059032691,-7407.141672,0.00018686,2]
[373598821,1753059032700,-300.0,0.00018689,2]
[373598822,1753059032709,-300.0,0.00018689,2]
[373598823,1753059032718,-150.0,0.00018724,2]
[373598824,1753059032728,-150.0,0.00018727,2]
[373598825,1753059032737,-168.88,0.00018751,2]
[373598826,1753059032747,-325.0,0.0001878,2]
[373598827,1753059032756,-965.0,0.00018805,2]
[373598828,1753059032766,-4753.19,0.00018878,2]
[373598829,1753059032775,-150.0,0.00018884,2]
[373598830,1753059032785,-229.6076,0.000189,2]
[373598831,1753059032795,-2097.6322,0.000189,2]
[373598832,1753059032804,-965.0,0.00018975,2]
[373598833,1753059032813,-4753.16,0.0001899,2]
[373598834,1753059032823,-7819.5054,0.00019,2]
[373598835,1753059032832,-1000.0,0.00019,2]
[373598836,1753059032842,-14459.6941,0.00019,2]
[373598837,1753059032851,-1000.0,0.00019,2]
[373598838,1753059032860,-33834.2979407,0.00019,2]
[373598839,1753059032869,-1242.7677303,0.00019,2]
[373598840,1753059032878,-196.05253275,0.00019,2]
[373598841,1753059032887,-242.14,0.00019016,2]
[373598842,1753059032897,-196.05253273,0.00019021,2]
[373598843,1753059032906,-160.0,0.00019037,2]
[373598844,1753059032919,-196.05253273,0.00019043,2]
[373598845,1753059032928,-183.2246196,0.00019061,2]
[373598846,1753059032937,-196.05253273,0.00019064,2]
[373598847,1753059032946,-1717.50025433,0.00019075,2]
[373598851,1753059038087,-820.62374567,0.00019075,2]
[373598852,1753059038096,-187.427,0.00019075,2]
[373598853,1753059038106,-150.0,0.00019077,2]
[373598854,1753059038115,-747.0,0.00019078,2]
[373598855,1753059038124,-153.46759369,0.00019078,2]
[373598856,1753059038133,-157.27831842,0.00019078,2]
[373598857,1753059038142,-227.30859125,0.00019078,2]
[373598858,1753059038151,-442.91769555,0.00019078,2]
[373598859,1753059038169,-3093.0175,0.00019078,2]
[373598860,1753059038178,-2500.0,0.00019078,2]
[373598861,1753059038188,-476.8747822,0.0001908,2]
[373598862,1753059038197,-210.86573235,0.0001908,2]
[373598864,1753059038206,-839.31074571,0.0001908,2]
[373598865,1753059038216,-1242.7677303,0.00019082,2]
[373598866,1753059038225,-196.05253273,0.00019085,2]
[373598867,1753059038234,-24.89232539,0.0001909,2]
[373598868,1753059038245,-364.89376461,0.0001909,2]
[373598869,1753059038254,-965.0,0.00019091,2]
[373598870,1753059038263,-150.0,0.00019096,2]
[373598871,1753059038272,-2000.0,0.00019099,2]
[373598872,1753059038281,-1918.88652621,0.000191,2]
[373598874,1753059038365,-429.23458607,0.000191,2]
[373598876,1753059038375,-1192.35820957,0.000191,2]
[373598882,1753059038422,-138864.5770969,0.000191,2]
[373598884,1753059038432,-4753.16,0.000191,2]
[373598886,1753059038442,-196.05253273,0.00019107,2]
[373598888,1753059038451,-196.05253273,0.00019128,2]
[373598890,1753059038461,-965.0,0.00019148,2]
[373598892,1753059038470,-196.05253273,0.00019149,2]
[373598894,1753059038480,-3352.0,0.00019162,2]
[373598896,1753059038490,-234.294,0.00019162,2]
[373598898,1753059038499,-961.0,0.00019162,2]
[373598900,1753059038508,-807.0,0.00019162,2]
[373598902,1753059038518,-1268.0,0.00019162,2]
[373598904,1753059038527,-2017.0,0.00019162,2]
[373598906,1753059038536,-1687.0,0.00019162,2]
[373598908,1753059038545,-562.0,0.00019162,2]
[373598910,1753059038559,-595.0,0.00019162,2]
[373598912,1753059038568,-1287.0,0.00019162,2]
[373598914,1753059038577,-5535.536,0.00019162,2]
[373598916,1753059038587,-862.0,0.00019162,2]
[373598918,1753059038596,-20560.637,0.00019162,2]
[373598920,1753059038605,-4126.0,0.00019162,2]
[373598922,1753059038614,-1242.7677303,0.00019163,2]
[373598925,1753059038634,-196.05253273,0.00019171,2]
[373598927,1753059038643,-500.0,0.00019173,2]
[373598929,1753059038653,-965.0,0.00019175,2]
[373598931,1753059038661,-300.0,0.00019177,2]
[373598933,1753059038670,-300.0,0.00019177,2]
[373598935,1753059038680,-300.0,0.00019177,2]
[373598937,1753059038689,-2120.0,0.00019177,2]
[373598939,1753059038698,-1000.0,0.00019177,2]
[373598941,1753059038707,-268.21769003,0.00019177,2]
[373598943,1753059038717,-500.0,0.00019177,2]
[373598944,1753059038726,-368.18167468,0.00019177,2]
[373598946,1753059038735,-370.29585386,0.00019177,2]
[373598948,1753059038745,-500.0,0.00019177,2]
[373598950,1753059038754,-480.0,0.00019178,2]
[373598952,1753059038764,-480.0,0.00019178,2]
[373598954,1753059038773,-480.0,0.00019178,2]
[373598956,1753059038783,-228.31498403,0.00019178,2]
[373599029,1753059039493,-243.66229949,0.00019178,2]
[373599031,1753059039502,-480.0,0.00019178,2]
[373599033,1753059039511,-363.02209047,0.00019178,2]
[373599035,1753059039520,-480.0,0.00019178,2]
[373599037,1753059039530,-480.0,0.00019178,2]
[373599039,1753059039539,-480.0,0.00019178,2]
[373599041,1753059039548,-460.0,0.00019178,2]
[373599043,1753059039560,-463.0613492,0.00019178,2]
[373599045,1753059039569,-380.85958489,0.00019178,2]
[373599048,1753059039586,-99.14041511,0.00019178,2]
[373599050,1753059039595,-460.0,0.00019178,2]
[373599052,1753059039604,-460.0,0.00019178,2]
[373599054,1753059039613,-643.33,0.00019178,2]
[373599056,1753059039622,-643.33,0.00019178,2]
[373599058,1753059039632,-52.406802,0.00019178,2]
[373599060,1753059039650,-427.593198,0.00019178,2]
[373599062,1753059039660,-480.0,0.00019178,2]
[373599064,1753059039670,-480.0,0.00019178,2]
[373599066,1753059039681,-261.52405641,0.00019178,2]
[373599068,1753059039690,-480.0,0.00019178,2]
[373599070,1753059039700,-480.0,0.00019178,2]
[373599072,1753059039709,-480.0,0.00019178,2]
[373599074,1753059039718,-480.0,0.00019178,2]
[373599076,1753059039729,-480.0,0.00019178,2]